Cogmind - Beta 14 @@@ ROGUE MODE // 2024.08.09 @ 10:44:53 Player: Dosh Result: Destroyed by G-67 Veteran with Plasma Rifle Performance ------------- Evolutions (6) 3000 Regions Visited (20) 4000 Robots Destroyed (170) 850 Value Destroyed (6317) 6317 Prototype IDs (53) 1060 Alien Tech Used (0) 0 Bonus (3637) 3637 TOTAL SCORE: 18864 Bonus ------- High Alert Combat Kills 774 Follower Combat Kills 2146 Entered Garrisons 200 Registered with UFD 300 Met Data Miner 300 Met Warlord at Base 500 MAIN.C Attacked Warlord 500 Friendly Fire -1083 Cogmind --------- Core Integrity 0/1150 Matter 300/300 Energy 100/100 System Corruption 3% Temperature Cool (9) Movement Core (50) Location -4/Garrison Parts ------- > --- POWER (1) -------- (None) > --- PROPULSION (6) --- (None) > --- UTILITY (8) ------ Spectral Analyzer Experimental Signal Interpreter Improved Melee Analysis Suite Hacking Suite Improved Hacking Suite Makeshift System Shield > --- WEAPON (4) ------- (None) > --- INVENTORY (5) ---- Light Particle Reactor Experimental Energy Well (600) Experimental Terrain Scanner Advanced Cloaking Device Peak State ------------ > --- POWER ------------ Reinforced Fission Core > --- PROPULSION ------- Overtuned Huge Scrapsphere Overtuned Huge Scrapsphere > --- UTILITY ---------- Scrap Suit Huge Storage Unit Improved Transmission Jammer Layered Heavy Armor Plating Improved Force Field Improved System Shield > --- WEAPON ----------- Cooled Plasma Cannon Cooled Plasma Cannon Advanced Plasma Cannon Advanced Plasma Cannon > --- INVENTORY -------- Reinforced Deuterium Engine Scrap Suit Scrap Suit Advanced Cooling System Advanced Cooling System Improved Coolant Injector Energy Well Deep Structural Scanner Experimental Terrain Scanner Advanced Terrain Scan Processor Seismic Detector Advanced Cloaking Device Force Field High-powered Tractor Beam Gatling Laser Gatling Laser Heavy Plasma Cannon Advanced Plasma Cannon Advanced Plasma Cannon Overtuned Coil Gun Precision Grenade Launcher Datajack DRS Beacon [Rating: 105] Favorites ----------- Power Improved Ion Engine Engine Improved Ion Engine Power Core Light Fission Core Reactor Light Particle Reactor Propulsion Advanced Treads Treads Advanced Treads Wheel Overtuned Huge Scrapsphere Flight Unit Cooled Impulse Thruster Utility Huge Storage Unit Device Advanced Heat Sink Storage Huge Storage Unit Processor Improved Melee Analysis Suite Hackware Hacking Suite Protection Makeshift Light Armor Plating Weapon Cooled Plasma Cannon Energy Gun Heavy EM Shotgun Energy Cannon Cooled Plasma Cannon Ballistic Gun Assault Rifle Ballistic Cannon Battle Cannon Launcher Grenade Launcher Special Weapon CPS Tube Slashing Weapon Phasing Sabre Special Melee Weapon Datajack Build | -11 -10 -10 -8 -8 -6 -6 -6 -6 -5 -5 -5 -5 -5 -5 -5 -4 -4 -4 -4 -4 ------- Run | Yrd Mat Sub Rec Scr Fac Low Low Dat Pro Fac Was Fac Upp Upp War Pro Fac Was Fac Gar Slots Evolved 12 | . . . . . 8 . . . . 2 . . . . . . 2 . . . Power . | . . . . . . . . . . . . . . . . . . . . . Propulsion 4 | . . . . . 2 . . . . . . . . . . . 2 . . . Utility 6 | . . . . . 5 . . . . 1 . . . . . . . . . . Weapon 2 | . . . . . 1 . . . . 1 . . . . . . . . . . Parts Attached 256 | 4 26 34 8 10 50 4 5 . 3 23 13 17 3 2 19 . 19 . 12 4 Power 17 | 1 1 1 . 1 5 . . . . 1 1 1 . . . . 2 . 2 1 Engine 10 | 1 1 1 . 1 4 . . . . 1 . 1 . . . . . . . . Core 3 | . . . . . 1 . . . . . 1 . . . . . . . 1 . Reactor 4 | . . . . . . . . . . . . . . . . . 2 . 1 1 Propulsion 51 | 2 5 10 4 1 12 1 . . . 2 . 2 1 . 2 . 5 . 4 . Treads 30 | 2 3 5 4 1 11 1 . . . . . 2 1 . . . . . . . Leg . | . . . . . . . . . . . . . . . . . . . . . Wheel 10 | . 2 5 . . 1 . . . . 2 . . . . . . . . . . Hover . | . . . . . . . . . . . . . . . . . . . . . Flight 11 | . . . . . . . . . . . . . . . 2 . 5 . 4 . Utility 104 | 1 11 13 2 7 16 2 4 . . 12 3 7 1 2 11 . 8 . 3 1 Device 55 | . 6 9 1 3 7 1 4 . . 9 2 6 1 1 2 . 1 . 1 1 Storage 8 | 1 1 . . 4 1 . . . . . . . . . 1 . . . . . Processor 10 | . . . . . . . . . . . . . . . 3 . 6 . 1 . Hackware 12 | . . . . . 3 . . . . 2 . 1 . . 4 . 1 . 1 . Protection 19 | . 4 4 1 . 5 1 . . . 1 1 . . 1 1 . . . . . Artifact . | . . . . . . . . . . . . . . . . . . . . . Weapon 84 | . 9 10 2 1 17 1 1 . 3 8 9 7 1 . 6 . 4 . 3 2 Energy Gun 7 | . 2 . . . 2 . . . . . 3 . . . . . . . . . Energy Cannon 33 | . 3 3 . . 5 1 1 . 1 5 5 4 1 . 2 . . . 1 1 Ballistic Gun 15 | . 1 5 1 . 5 . . . 1 1 . 1 . . . . . . . . Ballistic Cannon 1 | . . . . 1 . . . . . . . . . . . . . . . . Launcher 12 | . 2 2 . . 4 . . . 1 1 . 2 . . . . . . . . Special Weapon 2 | . . . . . 1 . . . . . 1 . . . . . . . . . Impact Weapon . | . . . . . . . . . . . . . . . . . . . . . Slashing Weapon 8 | . . . . . . . . . . . . . . . 2 . 4 . 1 1 Piercing Weapon . | . . . . . . . . . . . . . . . . . . . . . Special Melee Weapon 6 | . 1 . 1 . . . . . . 1 . . . . 2 . . . 1 . Unidentified Prototypes 15 | . . . . . 4 1 . . . . . 1 . . 7 . 2 . . . Parts Lost 70 | . 1 3 . . 12 . . . 1 8 1 17 . 1 . 1 13 . 5 7 Power 11 | . . 1 . . 2 . . . 1 2 . 2 . . . 1 1 . . 1 Propulsion 20 | . . . . . 3 . . . . 3 . 3 . 1 . . 5 . 2 3 Utility 16 | . . 1 . . 2 . . . . 2 . 5 . . . . 3 . 2 1 Weapon 23 | . 1 1 . . 5 . . . . 1 1 7 . . . . 4 . 1 2 Highest Loss Streak 9 | . 1 1 . . 9 . . . 1 3 1 9 . 1 . 1 5 . 5 4 To Critical Strikes 1 | . . . . . 1 . . . . . . . . . . . . . . . Average Slot Usage (%) 88 | . 99 99 100 87 88 93 94 94 93 82 81 71 25 22 63 71 69 54 69 55 Engine 11 | . 14 13 14 11 11 16 16 16 13 8 4 . . . 3 1 . . . . Core 1 | . . . . . 3 5 5 5 5 2 . 4 . . . . . . . . Treads 20 | . 27 14 28 28 20 22 22 22 22 10 . . 11 8 3 . . . . . Wheel 2 | . . 13 . . . . . . . 2 11 10 . . . . . . . . Device 10 | . 4 5 . 7 15 21 22 22 22 17 22 13 1 . . . 2 . . 3 Storage 9 | . 14 14 14 13 5 5 5 5 5 5 5 4 . . . . . . . . Hackware 2 | . . . . . 4 . . . . 10 11 8 11 11 23 23 20 15 15 18 Protection 5 | . 8 7 14 4 7 5 5 5 5 3 . 4 . . 5 5 . . . . Energy Cannon 6 | . 10 8 . . 5 15 16 16 12 12 12 20 . . . . . . 2 . Ballistic Gun 5 | . 4 18 27 4 5 . . . 3 5 . . . . . . . . . . Special Melee Weapon 5 | . 3 . . 14 . . . . . . . . . . 3 5 . . 4 . Peak Build Rating 105 | 4 11 17 22 29 98 102 101 97 97 98 101 105 42 39 89 80 105 67 89 83 Average Rating 47 | 3 9 14 21 22 80 101 98 97 92 90 95 95 36 30 62 77 85 61 73 68 On Entrance 56 | . 4 11 17 19 25 98 101 97 97 90 98 101 23 34 25 80 77 61 62 74 Naked Turns . | . . . . . . . . . . . . . . . . . . . . . Heaviest Build 172 | 8 36 42 39 94 165 165 167 161 161 155 161 172 1 3 14 14 29 18 30 29 Greatest Support 140 | 40 40 40 44 44 120 110 110 110 110 110 40 140 70 3 70 14 34 14 38 20 Greatest Overweight (x) 7 | 2 3 3 . 2 6 1 1 1 1 7 4 5 . . 3 . 1 1 1 1 Average Overweight (x) . | . . . . 1 2 1 1 1 1 3 2 3 . . . . . . . . Largest Inventory Capacity 25 | 8 15 15 15 25 25 25 25 25 25 25 25 25 5 5 5 5 5 5 5 5 Average Capacity 20 | 7 14 15 15 23 25 25 25 25 25 25 25 24 5 5 5 5 5 5 5 5 Most Carried 25 | . 15 15 15 25 25 25 24 24 24 25 25 25 3 4 5 5 5 5 5 5 Average Carried 18 | . 11 14 14 20 23 24 24 24 24 22 24 23 2 3 4 4 4 5 4 4 Final Capacity 25 | 8 15 15 15 25 25 25 25 25 25 25 25 5 5 5 5 5 5 5 5 5 Final Carried 25 | . 15 15 15 23 25 24 24 24 24 25 25 5 3 4 5 5 5 5 5 4 Class Distribution -------------------- 53% | Mutant 11% | Generator-Tank 5% | Trapper-Mutant 4% | Hacker-Sprinter 4% | Tank 4% | Hacker-Scrapper 3% | Hacker-Mutant Dominant Class ---------------- Mutant | -10/Materials Mutant | -10/Subcaves Mutant | -8/Recycling Mutant | -8/Scraptown Tank | -6/Factory Generator-Tank | -6/Lower Caves Generator-Tank | -6/Lower Caves Generator-Gunner | -6/Data Miner Gunner | -5/Proximity Caves Hacker-Tank | -5/Factory Hacker-Scrapper | -5/Waste Pyromaniac-Scrapper | -5/Factory Hacker-Mutant | -5/Upper Caves Hacker-Mutant | -5/Upper Caves Hacker-Mutant | -5/Warlord Hacker-Sprinter | -4/Proximity Caves Hacker-Sprinter | -4/Factory Hacker-Mutant | -4/Waste Hacker-Sprinter | -4/Factory Hacker-Sprinter | -4/Garrison Resources | -11 -10 -10 -8 -8 -6 -6 -6 -6 -5 -5 -5 -5 -5 -5 -5 -4 -4 -4 -4 -4 ----------- Run | Yrd Mat Sub Rec Scr Fac Low Low Dat Pro Fac Was Fac Upp Upp War Pro Fac Was Fac Gar Matter Collected 4349 | 191 408 675 147 120 1148 59 64 . 69 484 148 297 . 74 60 12 87 167 94 45 Remotely . | . . . . . . . . . . . . . . . . . . . . . Salvage Created 8808 | . 434 585 423 . 2412 356 157 . 284 1217 1714 798 . . . 12 116 . 300 . Parts 392 | . 40 47 17 . 106 23 8 . 18 54 18 41 . . . 1 3 . 16 . Haulers Intercepted 9 | . 2 . . . 4 . . . . . . 1 . . . . 1 . 1 . Recyclers Shooed 9 | . . . 3 . 4 . . . . 1 . 1 . . . . . . . . Parts Field Recycled . | . . . . . . . . . . . . . . . . . . . . . Retrieved Matter . | . . . . . . . . . . . . . . . . . . . . . Parts Self-Destructed 56 | . . 5 . . . 24 9 . 15 . . . . . . 3 . . . . Prevented . | . . . . . . . . . . . . . . . . . . . . . Kills | -11 -10 -10 -8 -8 -6 -6 -6 -6 -5 -5 -5 -5 -5 -5 -5 -4 -4 -4 -4 -4 ------- Run | Yrd Mat Sub Rec Scr Fac Low Low Dat Pro Fac Was Fac Upp Upp War Pro Fac Was Fac Gar Combat Hostiles Destroyed 127 | . 10 18 4 . 30 9 3 . 11 16 6 18 . . . 1 1 . . . Melee 3 | . . . . . 1 . . . . . . . . . . 1 1 . . . Guns 28 | . 3 6 4 . 9 . . . . 4 2 . . . . . . . . . Cannons 57 | . 3 7 . . 15 8 3 . 5 10 1 5 . . . . . . . . AOE 28 | . 4 4 . . 3 . . . 5 1 . 11 . . . . . . . . Classes Destroyed 21 | . 6 2 2 . 4 1 . . . 1 1 2 . . . 1 1 . . . Worker 1 | . . . . . . . . . . 1 . . . . . . . . . . Builder 7 | . 2 . . . 1 . . . . 3 . . . . . . . . 1 . Hauler 9 | . 2 . . . 4 . . . . . . 1 . . . . 1 . 1 . Recycler 9 | . . . 3 . 4 . . . . 2 . . . . . . . . . . Minesweeper 1 | . . . . . . 1 . . . . . . . . . . . . . . Mechanic 1 | . . . . . . . . . . . . 1 . . . . . . . . Operator 4 | . 1 . . . 1 . . . . . . 1 . . . . . . 1 . Drone 1 | . . . . . . . . . . . . . . . . 1 . . . . Turret 1 | . . 1 . . . . . . . . . . . . . . . . . . Watcher 6 | . 2 . . . 2 . . . . 1 . . . . . . . . 1 . Swarmer 39 | . 6 4 . . 3 7 1 . 10 . . 8 . . . . . . . . Cutter 1 | . . . . . . . . . . . . . . . . . 1 . . . Grunt 21 | . 4 . . . 12 . . . . 4 . 1 . . . . . . . . Duelist 5 | . . . . . . . . . . . . 5 . . . . . . . . Sentry 11 | . . . 4 . 3 1 1 . . 1 . 1 . . . . . . . . Hunter 13 | . . . . . 5 . . . 1 6 . 1 . . . . . . . . Programmer 12 | . . . . . 5 . . . . 5 . 2 . . . . . . . . Heavy 1 | . . . . . 1 . . . . . . . . . . . . . . . Behemoth 3 | . . . . . 1 1 1 . . . . . . . . . . . . . Compactor 6 | . . . . . . . . . . . 6 . . . . . . . . . Subdweller 14 | . . 14 . . . . . . . . . . . . . . . . . . Wasp 4 | . . . . . . . . . . . . . . . . . . . 4 . Best Kill Streak 5 | . 5 5 2 . 5 3 2 . 5 4 4 5 . . . 1 1 . 3 . Combat Bots Only 5 | . 5 4 1 . 4 3 2 . 5 3 4 5 . . . 1 1 . . . Max Kills in Single Turn 5 | . 2 4 1 . 2 1 1 . 5 2 1 5 . . . 1 1 . 1 . Gunslinging . | . . . . . . . . . . . . . . . . . . . . . Exploded 5 | . 2 4 . . 2 . . . 5 1 . 5 . . . . . . . . Melee 1 | . . . . . 1 . . . . . . . . . . 1 1 . . . Uniques/NPCs Destroyed . | . . . . . . . . . . . . . . . . . . . . . Combat | -11 -10 -10 -8 -8 -6 -6 -6 -6 -5 -5 -5 -5 -5 -5 -5 -4 -4 -4 -4 -4 -------- Run | Yrd Mat Sub Rec Scr Fac Low Low Dat Pro Fac Was Fac Upp Upp War Pro Fac Was Fac Gar Hostile Shots Fired 1332 | . 31 74 16 . 302 71 22 . 42 155 1 277 . 44 . 18 153 . 67 59 Missed 451 | . 8 23 2 . 84 29 7 . 10 46 . 91 . 17 . 11 77 . 32 14 Damage Taken 14953 | . 323 873 208 . 2942 338 118 . 516 1989 54 4220 . 413 . 249 1294 36 590 790 Core 2272 | . 6 133 43 . 225 16 5 . 14 103 . 325 . 108 . 128 409 . 212 545 Absorbed by Shields 1371 | . . . . . 506 357 32 . . 146 . 83 . . . . 55 . 111 81 Regen/Repaired (Parts) 666 | . 80 . . . 119 . . . . 277 11 15 . . 33 . . 86 45 . Core Remaining (%) 57 | 100 . . . 27 . . . . 69 . . . . . . 33 . . . . Volleys Fired 375 | . 31 70 18 . 115 21 6 . 11 53 20 27 1 . . . . . 1 1 Largest 4 | . 2 2 2 . 3 3 3 . 3 4 4 4 1 . . . . . 1 1 Hottest 329 | . 100 113 63 . 315 315 315 . 160 266 275 329 90 . . . . . 90 90 Shots Fired 942 | . 50 134 36 . 292 64 18 . 32 174 69 70 1 . . . . . 1 1 Gun 381 | . 16 80 36 . 140 . . . 3 59 47 . . . . . . . . . Cannon 523 | . 31 44 . . 137 64 18 . 28 113 21 64 1 . . . . . 1 1 Launcher 37 | . 3 10 . . 15 . . . 1 2 . 6 . . . . . . . . Special 1 | . . . . . . . . . . . 1 . . . . . . . . . Kinetic 328 | . 4 80 36 . 146 . . . 3 59 . . . . . . . . . . Thermal 548 | . 31 44 . . 115 64 18 . 28 113 68 64 1 . . . . . 1 1 Explosive 37 | . 3 10 . . 15 . . . 1 2 . 6 . . . . . . . . Electromagnetic 28 | . 12 . . . 16 . . . . . . . . . . . . . . . Robot Hit Streak 23 | . 14 19 23 . 18 12 6 . 7 19 20 9 . . . . . . . . Robot Miss Streak 5 | . 5 3 3 . 3 4 3 . 2 3 2 2 . . . . . . . . Penetration Max 1 | . . . . . 1 . . . . 1 . . . . . . . . . . Secondary Targets 1 | . . . . . 1 . . . . . . . . . . . . . . . Max Gunslinging Chain 1 | . . . . . 1 . . . . . . . . . . . . . . . Shots Hit Robots 607 | . 30 72 26 5 192 27 13 . 15 88 63 38 . . . 7 15 . 16 . Core Hits 312 | . 20 31 10 . 105 11 5 . 11 46 19 41 . . . 4 3 . 6 . Critical Kills 6 | . . 1 . . 2 1 . . . 1 . 1 . . . . . . . . Critical Parts Destroyed 2 | . . . . . 2 . . . . . . . . . . . . . . . Critical Strikes 11 | . . 2 . . 5 1 . . . 1 . 1 . . . . 1 . . . Meltdown 6 | . . 1 . . 2 1 . . . 1 . 1 . . . . . . . . Destroy 3 | . . 1 . . 2 . . . . . . . . . . . . . . . Blast 1 | . . . . . 1 . . . . . . . . . . . . . . . Sever 1 | . . . . . . . . . . . . . . . . . 1 . . . Melee Attacks 87 | . . . 1 5 . . . . . 1 . . . . . 9 38 . 29 4 Impact . | . . . . . . . . . . . . . . . . . . . . . Slashing 73 | . . . . . . . . . . . . . . . . 2 38 . 29 4 Piercing 7 | . . . . . . . . . . . . . . . . 7 . . . . Sneak Attacks 23 | . . . 1 5 . . . . . 1 . . . . . 2 2 . 12 . Combat Hostiles 2 | . . . . . . . . . . . . . . . . 2 . . . . Follow-up Attacks 5 | . . . . . . . . . . . . . . . . 1 4 . . . Damage Inflicted 21189 | . 765 1764 560 . 5708 1232 628 . 858 3279 1822 2433 . . . 62 831 . 1247 . Guns 5022 | . 168 693 535 . 1727 . . . . 619 1280 . . . . . . . . . Cannons 10390 | . 322 633 . . 3097 1232 628 . 552 2134 542 1250 . . . . . . . . Explosions 3444 | . 257 438 . . 758 . . . 306 502 . 1183 . . . . . . . . Melee 2140 | . . . . . . . . . . . . . . . . 62 831 . 1247 . Ramming 193 | . 18 . 25 . 126 . . . . 24 . . . . . . . . . . Kinetic 3747 | . 27 693 535 . 1873 . . . . 619 . . . . . . . . . . Thermal 11707 | . 380 633 . . 3002 1232 628 . 552 2134 1822 1324 . . . . . . . . Explosive 3082 | . 199 438 . . 587 . . . 306 502 . 1050 . . . . . . . . Electromagnetic 320 | . 141 . . . 120 . . . . . . 59 . . . . . . . . Impact . | . . . . . . . . . . . . . . . . . . . . . Slashing 2124 | . . . . . . . . . . . . . . . . 46 831 . 1247 . Piercing 16 | . . . . . . . . . . . . . . . . 16 . . . . Highest Corruption 22 | . . . . . 1 1 1 1 1 10 10 22 22 22 17 . . . 3 3 Average Corruption 4 | . . . . . 1 1 1 1 1 4 10 12 22 19 17 . . . 2 3 Corruption Purged 5 | . . . . . . . . . . . . . . 5 . . . . . . Corruption Blocked . | . . . . . . . . . . . . . . . . . . . . . Effects 160 | . . . . . 1 17 10 2 7 34 19 49 4 12 1 . . . . 4 Message Errors 38 | . . . . . . 5 2 2 2 8 2 8 2 5 . . . . . 2 Matter Fused 36 | . . . . . . 3 1 . 2 9 7 12 1 . . . . . . 1 Heat Flow Errors 16 | . . . . . . . 2 . 2 3 1 4 . 3 1 . . . . . Energy Discharges 19 | . . . . . . 3 1 . . 3 2 9 . 1 . . . . . . Parts Rejected 2 | . . . . . . . . . . 1 1 . . . . . . . . . Parts Fused 3 | . . . . . . . . . . . 2 1 . . . . . . . . Data Loss (minor) 22 | . . . . . 1 3 3 . . 2 2 10 . 1 . . . . . . Data Loss (major) 2 | . . . . . . . . . . 2 . . . . . . . . . . Misfires 6 | . . . . . . 1 . . 1 3 1 . . . . . . . . . Alerts 6 | . . . . . . 2 1 . . 1 . . 1 . . . . . . 1 Misdirections 7 | . . . . . . . . . . . 1 4 . 2 . . . . . . Weapon Failures 3 | . . . . . . . . . . 2 . 1 . . . . . . . . Overload Shots 23 | . . . . . 6 11 6 . . . . . . . . . . . . . Overflow Damage 674 | . 5 1 . . 163 15 12 . 18 43 . 74 . . . 16 120 . 207 . Projectiles 205 | . 5 . . . 94 15 12 . 18 41 . 20 . . . . . . . . Explosions 105 | . . 1 . . 48 . . . . 2 . 54 . . . . . . . . Melee 364 | . . . . . 21 . . . . . . . . . . 16 120 . 207 . Knockbacks 5 | . . . . . 5 . . . . . . . . . . . . . . . Impact 1 | . . . . . 1 . . . . . . . . . . . . . . . Kinetic 3 | . . . . . 3 . . . . . . . . . . . . . . . Secondary 1 | . . . . . 1 . . . . . . . . . . . . . . . Self-Inflicted Damage 649 | . 83 . . . 265 . . . . 52 . 249 . . . . . . . . Shots 13 | . 3 . . . 3 . . . . 1 . 6 . . . . . . . . Rammed 22 | . 3 . 4 . 12 . . . . 3 . . . . . . . . . . Targets Rammed 23 | . 3 . 4 . 13 . . . . 3 . . . . . . . . . . Kicked . | . . . . . . . . . . . . . . . . . . . . . Crushed 1 | . . . . . 1 . . . . . . . . . . . . . . . Highest Temperature 533 | . 414 241 111 . 533 348 461 . 4 412 62 420 10 225 133 9 6 . 112 36 Average Temperature 103 | . 93 28 43 . 129 93 147 . 4 82 62 131 7 88 76 6 6 . 47 19 Received Heat Transfer 2453 | . 78 415 81 . 476 20 30 . . 62 . 801 . 27 . 37 244 . 9 173 Effects 19 | . 2 . . . 9 . 3 . . 4 . 1 . . . . . . . . Shutdowns 4 | . . . . . . . 2 . . 2 . . . . . . . . . . Energy Bleed 3 | . 1 . . . 2 . . . . . . . . . . . . . . . Interference 7 | . . . . . 5 . . . . 2 . . . . . . . . . . Short Circuit 3 | . . . . . 2 . 1 . . . . . . . . . . . . . Damage (minor) 2 | . 1 . . . . . . . . . . 1 . . . . . . . . Siege Activations . | . . . . . . . . . . . . . . . . . . . . . Robots Corrupted . | . . . . . . . . . . . . . . . . . . . . . Combat Hostiles . | . . . . . . . . . . . . . . . . . . . . . Parts Fried . | . . . . . . . . . . . . . . . . . . . . . Impact Corruptions 1 | . . . . . 1 . . . . . . . . . . . . . . . Robots Melted 13 | . . 1 . . 2 2 . . 1 2 3 2 . . . . . . . . Combat Hostiles 11 | . . 1 . . 2 1 . . 1 1 3 2 . . . . . . . . Parts Melted 50 | . 1 3 . . 5 6 7 . 4 9 4 11 . . . . . . . . Heat Transferred 18032 | . 766 1110 . . 4106 1650 850 . 850 3100 3750 1850 . . . . . . . . Parts Sabotaged . | . . . . . . . . . . . . . . . . . . . . . Parts Stolen . | . . . . . . . . . . . . . . . . . . . . . Parts Stripped . | . . . . . . . . . . . . . . . . . . . . . Power Chain Reactions 6 | . 1 . . . 1 . . . . . . 4 . . . . . . . . Alert | -11 -10 -10 -8 -8 -6 -6 -6 -6 -5 -5 -5 -5 -5 -5 -5 -4 -4 -4 -4 -4 ------- Run | Yrd Mat Sub Rec Scr Fac Low Low Dat Pro Fac Was Fac Upp Upp War Pro Fac Was Fac Gar Peak Influence 2184 | . 150 . 178 . 512 . . . . 712 219 2184 . . . . 708 323 827 548 Initial 510 | . . . 91 . . . . . . . 219 . . . . . 320 241 219 510 Average 286 | . 68 . 81 . 120 . . . . 179 157 1180 . . . . 397 290 585 501 Maximum Alert Level 5 | . . . . . 2 . . . . 3 1 5 . . . . 3 1 3 2 Low Security (%) 63 | 100 100 . 100 . 75 . . . . 79 57 12 . . . . 1 . . . Level 1 14 | . . . . . 19 . . . . 3 42 4 . . . . 70 100 8 . Level 2 10 | . . . . . 5 . . . . 14 . 4 . . . . 25 . 62 100 Level 3 4 | . . . . . . . . . . 1 . 21 . . . . 2 . 28 . Level 4 3 | . . . . . . . . . . . . 29 . . . . . . . . Level 5 3 | . . . . . . . . . . . . 27 . . . . . . . . High Security . | . . . . . . . . . . . . . . . . . . . . . Max Security . | . . . . . . . . . . . . . . . . . . . . . Squads Dispatched 56 | . . . . . 15 . . . . 10 . 18 . . . . 7 . 6 . Investigation 12 | . . . . . 3 . . . . 2 . 2 . . . . 3 . 2 . Extermination 10 | . . . . . 5 . . . . 3 . 1 . . . . 1 . . . Reinforcement 23 | . . . . . 7 . . . . 4 . 5 . . . . 3 . 4 . Assault 8 | . . . . . . . . . . 1 . 7 . . . . . . . . Garrison 3 | . . . . . . . . . . . . 3 . . . . . . . . Intercept . | . . . . . . . . . . . . . . . . . . . . . Searches Triggered 1 | . . . . . . . . . . . . . . . . . 1 . . . Construction Impeded 6 | . . . . . 2 . . . . 2 . 2 . . . . . . . . Haulers Reinforced 3 | . . . . . 2 . . . . . . 1 . . . . . . . . Active Scanning Responses . | . . . . . . . . . . . . . . . . . . . . . Cargo Convoy Interrupts 1 | . . . . . . . . . . 1 . . . . . . . . . . Stealth | -11 -10 -10 -8 -8 -6 -6 -6 -6 -5 -5 -5 -5 -5 -5 -5 -4 -4 -4 -4 -4 --------- Run | Yrd Mat Sub Rec Scr Fac Low Low Dat Pro Fac Was Fac Upp Upp War Pro Fac Was Fac Gar Distress Signals 23 | . 4 . . . 2 . . . . 2 . 5 . . . 1 5 . 4 . Communications Jammed 9 | . . . . . . . . . . 2 . 7 . . . . . . . . Distress Signals 9 | . . . . . . . . . . 2 . 7 . . . . . . . . Times Spotted 389 | . 21 24 4 . 44 10 5 . 15 30 6 102 . 10 4 13 57 7 27 10 Peak Tracking Total 18 | . 6 6 1 . 4 3 3 . 5 5 2 15 . 8 4 9 18 6 15 8 Tactical Retreats 42 | . 1 5 . . 1 . . . 1 . . 13 . 3 . . 10 1 6 1 Traps | -11 -10 -10 -8 -8 -6 -6 -6 -6 -5 -5 -5 -5 -5 -5 -5 -4 -4 -4 -4 -4 ------- Run | Yrd Mat Sub Rec Scr Fac Low Low Dat Pro Fac Was Fac Upp Upp War Pro Fac Was Fac Gar Traps Triggered 21 | . 2 1 . . . . . . . 2 . 5 . . . . 3 . 3 5 Indirectly . | . . . . . . . . . . . . . . . . . . . . . Trap Hack Attempts 106 | . 106 . . . . . . . . . . . . . . . . . . . Triggered . | . . . . . . . . . . . . . . . . . . . . . Disarmed 1 | . 1 . . . . . . . . . . . . . . . . . . . Reprogrammed 15 | . 15 . . . . . . . . . . . . . . . . . . . Reused 16 | . . 16 . . . . . . . . . . . . . . . . . . Traps Extracted 17 | . 15 2 . . . . . . . . . . . . . . . . . . Installed 18 | . . 18 . . . . . . . . . . . . . . . . . . Triggered 8 | . . . . . . . . . 1 2 . . . . 5 . . . . . Most Traps Carried 15 | . 15 15 1 1 1 . . . . . . . . . . . . . . . Machines | -11 -10 -10 -8 -8 -6 -6 -6 -6 -5 -5 -5 -5 -5 -5 -5 -4 -4 -4 -4 -4 ---------- Run | Yrd Mat Sub Rec Scr Fac Low Low Dat Pro Fac Was Fac Upp Upp War Pro Fac Was Fac Gar Machines Disabled 34 | . 1 5 1 . 5 . . . . 11 . 8 . . . . 3 . . . Max in Single Turn 3 | . 1 2 1 . 2 . . . . 3 . 2 . . . . . . . . Garrison Access 1 | . . . . . . . . . . . . . . . . . 1 . . . Machines Repaired . | . . . . . . . . . . . . . . . . . . . . . Machines Dismantled . | . . . . . . . . . . . . . . . . . . . . . Machines Sabotaged . | . . . . . . . . . . . . . . . . . . . . . Overloaded Fab Kills . | . . . . . . . . . . . . . . . . . . . . . Hacking | -11 -10 -10 -8 -8 -6 -6 -6 -6 -5 -5 -5 -5 -5 -5 -5 -4 -4 -4 -4 -4 --------- Run | Yrd Mat Sub Rec Scr Fac Low Low Dat Pro Fac Was Fac Upp Upp War Pro Fac Was Fac Gar Machines Accessed 78 | . 8 2 10 11 10 . 1 4 . 5 . 9 . . 2 . 8 . 7 1 Terminals 34 | . 7 . 6 . 7 . . . . 1 . 5 . . . . 4 . 3 1 Fabricators 9 | . . . . . 1 . . . . 1 . 3 . . . . 2 . 2 . Repair Stations 4 | . 1 . . . . . . . . 2 . . . . . . . . 1 . Recycling Units 6 | . . . 2 . 2 . . . . 1 . . . . . . 1 . . . Scanalyzers . | . . . . . . . . . . . . . . . . . . . . . Garrison Access 3 | . . . . . . . . . . . . 1 . . . . 1 . 1 . Total Hacks 295 | . 15 4 40 85 21 . 1 30 . 24 . 23 . . 2 . 29 . 18 3 Successful 224 | . 8 4 33 85 13 . 1 30 . 14 . 5 . . 2 . 18 . 10 1 Failed 70 | . 6 . 7 . 8 . . . . 10 . 18 . . . . 11 . 8 2 Catastrophic 11 | . . . 1 . 2 . . . . 1 . 5 . . . . 2 . . . Database Lockouts 1 | . 1 . . . . . . . . . . . . . . . . . . . Manual 69 | . 7 . 7 . 10 . . . . 8 . 5 . . 1 . 18 . 10 3 Terminals 91 | . 13 . 13 . 15 . . . . 6 . 12 . . . . 21 . 8 3 Fabricators 27 | . . . . . 3 . . . . 4 . 10 . . . . 6 . 4 . Repair Stations 20 | . 2 . . . . . . . . 13 . . . . . . . . 5 . Recycling Units 8 | . . . 3 . 3 . . . . 1 . . . . . . 1 . . . Scanalyzers . | . . . . . . . . . . . . . . . . . . . . . Garrison Access 3 | . . . . . . . . . . . . 1 . . . . 1 . 1 . Terminal Hacks 180 | . 5 4 30 85 7 . 1 30 . 2 . 2 . . 2 . 9 . 3 . Record 123 | . . 3 24 85 . . . 11 . . . . . . . . . . . . Part Schematic 13 | . . . . . 1 . . 11 . . . . . . . . 1 . . . Robot Schematic 6 | . . . 1 . . . . 5 . . . . . . . . . . . . Robot Analysis 1 | . 1 . . . . . . . . . . . . . . . . . . . Prototype ID Bank 7 | . 2 . 2 . . . . 3 . . . . . . . . . . . . Open Door 3 | . . . . . . . 1 . . . . . . . 2 . . . . . Level Access Points 1 | . . . . . . . . . . . . . . . . . 1 . . . Branch Access Points 2 | . . . . . 1 . . . . 1 . . . . . . . . . . Terminal Index 3 | . . . . . 1 . . . . . . . . . . . 1 . 1 . Fabricator Index 3 | . . . . . 1 . . . . 1 . . . . . . 1 . . . Repair Station Index 1 | . . . . . . . . . . . . . . . . . 1 . . . Recycling Unit Index 1 | . . . . . 1 . . . . . . . . . . . . . . . Alert Level 3 | . . . . . 1 . . . . . . 1 . . . . . . 1 . Unreport Threat 2 | . . . . . . . . . . . . 1 . . . . . . 1 . Locate Traps 1 | . 1 . . . . . . . . . . . . . . . . . . . Patrol Status 1 | . . . . . 1 . . . . . . . . . . . . . . . Recall Investigation 2 | . . . . . . . . . . . . . . . . . 2 . . . Recall Reinforcements 1 | . . . . . . . . . . . . . . . . . 1 . . . Hauler Manifests 1 | . . . . . . . . . . . . . . . . . 1 . . . Zone Layout 4 | . 1 . 3 . . . . . . . . . . . . . . . . . Derelict Proto ID Bank 1 | . . 1 . . . . . . . . . . . . . . . . . . Fabricator Hacks 11 | . . . . . 2 . . . . 2 . 3 . . . . 4 . . . Load Schematic 6 | . . . . . 1 . . . . 1 . 2 . . . . 2 . . . Build 5 | . . . . . 1 . . . . 1 . 1 . . . . 2 . . . Repair Station Hacks 13 | . 2 . . . . . . . . 8 . . . . . . . . 3 . Scan Component 8 | . 1 . . . . . . . . 5 . . . . . . . . 2 . Repair 5 | . 1 . . . . . . . . 3 . . . . . . . . 1 . Recycling Unit Hacks . | . . . . . . . . . . . . . . . . . . . . . Scanalyzer . | . . . . . . . . . . . . . . . . . . . . . Garrison Access Hacks 2 | . . . . . . . . . . . . . . . . . 1 . 1 . Unlock Access 1 | . . . . . . . . . . . . . . . . . . . 1 . Seal Access 1 | . . . . . . . . . . . . . . . . . 1 . . . Unauthorized Hacks 18 | . 1 . 3 . 4 . . . . 2 . . . . . . 4 . 3 1 Terminals 9 | . 1 . 1 . 3 . . . . . . . . . . . 2 . 1 1 Track 2 | . . . 1 . 1 . . . . . . . . . . . . . . . Assimilate 2 | . . . . . 1 . . . . . . . . . . . 1 . . . Botnet 4 | . 1 . . . 1 . . . . . . . . . . . 1 . 1 . Override 1 | . . . . . . . . . . . . . . . . . . . . 1 Fabricators 4 | . . . . . . . . . . 1 . . . . . . 1 . 2 . Prioritize 2 | . . . . . . . . . . 1 . . . . . . 1 . . . Liberate 1 | . . . . . . . . . . . . . . . . . . . 1 . Overload 1 | . . . . . . . . . . . . . . . . . . . 1 . Repair Stations 3 | . . . . . 1 . . . . 1 . . . . . . 1 . . . Recycling Units 2 | . . . 2 . . . . . . . . . . . . . . . . . Tunnel 2 | . . . 2 . . . . . . . . . . . . . . . . . Fedlink 1 | . . . . . 1 . . . . . . . . . . . . . . . Scrapoids 2 | . . . . . . . . . . 1 . . . . . . 1 . . . Scanalyzers . | . . . . . . . . . . . . . . . . . . . . . Garrison Access . | . . . . . . . . . . . . . . . . . . . . . Data Cores Recovered 2 | . 1 . . . . . . . . . . 1 . . . . . . . . Used 1 | . 1 . . . . . . . . . . . . . . . . . . . Hacking Detections 45 | . 6 . 5 . 9 . . . . 4 . 9 . . . . 6 . 5 1 Full Trace Events 9 | . . . 2 . 2 . . . . 1 . 2 . . . . 2 . . . Feedback Events . | . . . . . . . . . . . . . . . . . . . . . Feedback Blocked . | . . . . . . . . . . . . . . . . . . . . . Robot Schematics Acquired 6 | . . . 1 . . . . 5 . . . . . . . . . . . . Robots Built 2 | . . . . . 1 . . . . . . . . . . . 1 . . . Authchips . | . . . . . . . . . . . . . . . . . . . . . Time 87 | . . . . . 58 . . . . . . . . . . . 29 . . . Total Robot Build Rating 6 | . . . . . 3 . . . . . . . . . . . 3 . . . Part Schematics Acquired 13 | . . . . . 1 . . 11 . . . . . . . . 1 . . . Parts Built 6 | . . . . . . . . . . 2 . 2 . . . . 2 . . . Authchips . | . . . . . . . . . . . . . . . . . . . . . Time 223 | . . . . . . . . . . 53 . 106 . . . . 64 . . . Total Part Build Rating 40 | . . . . . . . . . . 12 . 12 . . . . 16 . . . Parts Repaired 5 | . 1 . . . . . . . . 3 . . . . . . . . 1 . Time 412 | . 26 . . . . . . . . 250 . . . . . . . . 136 . Parts Recycled . | . . . . . . . . . . . . . . . . . . . . . Recycled Matter . | . . . . . . . . . . . . . . . . . . . . . Retrieved Matter . | . . . . . . . . . . . . . . . . . . . . . Retrieved Components . | . . . . . . . . . . . . . . . . . . . . . Parts Scanalyzed . | . . . . . . . . . . . . . . . . . . . . . Part Schematics Acquired . | . . . . . . . . . . . . . . . . . . . . . Parts Damaged . | . . . . . . . . . . . . . . . . . . . . . Bothacking | -11 -10 -10 -8 -8 -6 -6 -6 -6 -5 -5 -5 -5 -5 -5 -5 -4 -4 -4 -4 -4 ------------ Run | Yrd Mat Sub Rec Scr Fac Low Low Dat Pro Fac Was Fac Upp Upp War Pro Fac Was Fac Gar Used RIF Installer . | . . . . . . . . . . . . . . . . . . . . . Robots Hacked 7 | . . . 1 5 . . . . . 1 . . . . . . . . . . Non-combat 1 | . . . . . . . . . . 1 . . . . . . . . . . Combat 6 | . . . 1 5 . . . . . . . . . . . . . . . . Robot Hacks Applied 7 | . . . 1 5 . . . . . 1 . . . . . . . . . . parse_system 6 | . . . 1 5 . . . . . . . . . . . . . . . . find_chute 1 | . . . . . . . . . . 1 . . . . . . . . . . Relay Couplers Released . | . . . . . . . . . . . . . . . . . . . . . Fabnet Peak Effective % . | . . . . . . . . . . . . . . . . . . . . . Robots Rewired 1 | . . . . . . . . . . . . . . . . . . . . 1 Allies Hacked 1 | . . . . . 1 . . . . . . . . . . . . . . . Hacks Repelled . | . . . . . . . . . . . . . . . . . . . . . Allies | -11 -10 -10 -8 -8 -6 -6 -6 -6 -5 -5 -5 -5 -5 -5 -5 -4 -4 -4 -4 -4 -------- Run | Yrd Mat Sub Rec Scr Fac Low Low Dat Pro Fac Was Fac Upp Upp War Pro Fac Was Fac Gar Total Allies 58 | . . . . . 2 1 . . . 5 19 . . . . 1 7 19 3 1 Largest Group 19 | . . . . . 1 1 1 1 1 5 18 18 . . . 1 5 19 15 1 Highest-Rated Group 684 | . . . . . 23 38 38 29 29 238 656 656 . . . 47 235 684 556 85 Highest-Rated Ally 85 | . . . . . 23 38 38 29 29 50 50 50 . . . 47 47 50 50 85 Total Orders 4 | . . . . . 1 . . . . . . . . . . . 1 . . 2 ROAM 1 | . . . . . . . . . . . . . . . . . . . . 1 FOLLOW 1 | . . . . . . . . . . . . . . . . . . . . 1 AID 2 | . . . . . 1 . . . . . . . . . . . 1 . . . Ally Attacks 559 | . . . . . . . 6 . . 27 13 294 . . . 4 58 75 78 4 Total Damage 16402 | . . . . . . . 87 . . 934 208 7785 . . . 93 1542 2534 2951 268 Kills 93 | . . . . . . . 2 . . 12 . 47 . . . 1 9 5 16 1 Allies Corrupted 1 | . . . . . . . . . . . . 1 . . . . . . . . Allies Melted 1 | . . . . . . . . . . . . 1 . . . . . . . . Intel | -11 -10 -10 -8 -8 -6 -6 -6 -6 -5 -5 -5 -5 -5 -5 -5 -4 -4 -4 -4 -4 ------- Run | Yrd Mat Sub Rec Scr Fac Low Low Dat Pro Fac Was Fac Upp Upp War Pro Fac Was Fac Gar Robot Analysis Total 1 | . 1 . . . . . . . . . . . . . . . . . . . Derelict Logs Recovered 6 | . . 1 . 1 . 1 . . 1 . . . 1 1 . . . . . . Drone Launches . | . . . . . . . . . . . . . . . . . . . . . Drone Recoveries . | . . . . . . . . . . . . . . . . . . . . . Decoded 0b10 Intel 14 | . . . . . . . . . . . . . . . . . 14 . . . Items 13 | . . . . . . . . . . . . . . . . . 13 . . . Guards 1 | . . . . . . . . . . . . . . . . . 1 . . . Exploration | -11 -10 -10 -8 -8 -6 -6 -6 -6 -5 -5 -5 -5 -5 -5 -5 -4 -4 -4 -4 -4 ------------- Run | Yrd Mat Sub Rec Scr Fac Low Low Dat Pro Fac Was Fac Upp Upp War Pro Fac Was Fac Gar Turns Passed 31894 | 55 2029 4127 938 11384 3033 2360 1047 185 833 1622 523 1241 75 216 510 76 670 202 585 183 Spaces Moved 17230 | 37 1079 2909 583 3557 1226 963 431 79 335 597 323 951 136 423 819 207 1220 171 997 187 Core 1009 | 15 . . . 143 . . . . . . . 48 135 423 235 . . . . 10 Treads 9397 | 22 1057 1190 583 3414 908 963 431 79 335 268 . 28 1 . 118 . . . . . Legs . | . . . . . . . . . . . . . . . . . . . . . Wheels 3586 | . 22 1719 . . 318 . . . . 329 323 875 . . . . . . . . Hover . | . . . . . . . . . . . . . . . . . . . . . Flight 3238 | . . . . . . . . . . . . . . . 466 207 1220 171 997 177 Fastest Speed 19 | 50 95 95 145 50 110 236 236 236 236 100 90 50 50 50 32 32 20 32 19 29 Average Speed 145 | 134 158 127 145 222 200 236 236 236 236 184 99 106 50 50 56 32 29 36 28 34 Slowest Speed 560 | 160 160 240 160 305 320 236 236 236 236 560 110 160 160 50 200 32 101 102 102 103 Overloaded Moves 40 | . . . . . . . . . . . . . . . . . 9 . 30 1 Propulsion Burnouts . | . . . . . . . . . . . . . . . . . . . . . Robots Hopped 18 | . . . . . . . . . . . . . . . . . 3 . 11 4 Cave-ins Triggered . | . . . . . . . . . . . . . . . . . . . . . Exploration Rate (%) 59 | 4 98 97 89 95 36 86 60 69 52 22 90 38 34 57 96 54 27 86 30 34 Regions Visited 20 Branch Regions 11 Pre-discovered Areas 9 | . . 1 2 5 . . . 1 . . . . . . . . . . . . Known Exits Taken 8 | . . . . . 1 1 . . 1 . . 1 1 . 1 1 . . 1 . Unknown Exits Taken 8 | 1 1 1 1 1 . . 1 1 . . . . . 1 . . . . . . Scrap Searched 33 | . . 9 . 4 . 14 1 . 1 . . . 1 2 . 1 . . . . Spaces Dug 78 | . . . . . 3 18 . . . 13 . 11 1 . . . 15 . 13 4 Terrain Destroyed 364 | . 23 33 2 . 94 37 4 . 16 68 3 51 1 . . . 15 . 13 4 Melee 31 | . . . . . . . . . . . . . . . . . 15 . 12 4 Projectile 145 | . . 2 2 . 26 37 4 . 11 35 3 23 1 . . . . . 1 . AOE 188 | . 23 31 . . 68 . . . 5 33 . 28 . . . . . . . . Terrain Rammed . | . . . . . . . . . . . . . . . . . . . . . Walls Destroyed . | . . . . . . . . . . . . . . . . . . . . . Machines Disabled . | . . . . . . . . . . . . . . . . . . . . . Actions | -11 -10 -10 -8 -8 -6 -6 -6 -6 -5 -5 -5 -5 -5 -5 -5 -4 -4 -4 -4 -4 --------- Run | Yrd Mat Sub Rec Scr Fac Low Low Dat Pro Fac Was Fac Upp Upp War Pro Fac Was Fac Gar Total 23196 | 40 1336 3176 638 7018 1559 1007 446 78 353 994 465 1126 141 425 865 218 1471 312 1232 296 Wait 4762 | . 65 126 8 3400 101 13 5 . 5 291 100 107 . . 14 2 163 139 183 40 Move 17181 | 36 1078 2908 582 3556 1225 962 430 78 334 597 322 950 135 422 818 206 1214 170 977 181 Hop 14 | . . . . . . . . . . . . . . . . . 3 . 9 2 Pick Up 130 | . 17 7 6 31 27 2 . . . 16 5 9 . 1 2 1 3 . 2 1 Fast Attach 94 | 4 8 6 1 2 15 2 . . . 2 1 5 . 2 19 . 18 . 9 . Attach 45 | . 1 2 . 3 14 1 . . . 7 2 5 3 . . . 1 . 2 4 Detach 25 | . 1 . . 1 3 1 . . . 2 . 1 2 . 4 . 5 1 2 2 Swap 117 | . 17 26 7 5 21 1 5 . 3 14 10 7 . . . . . . 1 . Drop 123 | . 9 13 11 15 25 4 . . . 8 5 8 . . 8 1 6 2 7 1 Fire 375 | . 31 70 18 . 115 21 6 . 11 53 20 27 1 . . . . . 1 1 Melee 80 | . . . 1 5 . . . . . 1 . . . . . 8 32 . 29 4 Ram 3 | . . . . . 2 . . . . 1 . . . . . . . . . . Kick . | . . . . . . . . . . . . . . . . . . . . . Crush 20 | . 3 . 4 . 11 . . . . 2 . . . . . . . . . . Escape Stasis 98 | . . . . . . . . . . . . 7 . . . . 26 . 10 55 Rewire 5 | . . . . . . . . . . . . . . . . . . . . 5 Trap 124 | . 106 18 . . . . . . . . . . . . . . . . . . Miscellaneous . | . . . . . . . . . . . . . . . . . . . . . Route ------- -11/Scrapyard -10/Materials (discovered 5 exits: [*Mat x3] / [*Min] / *Sub) -10/Subcaves (discovered 3 exits: [*Mat x2] / *Rec) -8/Recycling (discovered 2 exits: *Fac / *Scr) -8/Scraptown (discovered 2 exits: *Fac x2) -6/Factory (discovered 5 exits: *Fac x3 / *Low x2) -6/Lower Caves -6/Lower Caves -6/Data Miner -5/Proximity Caves -5/Factory (discovered 2 exits: *Upp x2) -5/Waste -5/Factory (discovered 2 exits: *Fac / *Upp) -5/Upper Caves -5/Upper Caves -5/Warlord -4/Proximity Caves -4/Factory (discovered 5 exits: *Res x4 / [*Upp]) -4/Waste -4/Factory (discovered 2 exits: [*Upp] / Gar) -4/Garrison (discovered 3 exits: *Fac x3) History --------- Turn | Location | Event 16 | -11/Scrapyard | Discovered new exit (range 15) 56 | -11/Scrapyard | Entered Materials 302 | -10/Materials | Build established: Mutant 508 | -10/Materials | Discovered new exit (range 5) 738 | -10/Materials | Discovered new exit (range 9) 756 | -10/Materials | Derelicts attacked the area 841 | -10/Materials | Central database locked down 978 | -10/Materials | Discovered new exit (range 8) 1252 | -10/Materials | Discovered new exit (range 8) 1417 | -10/Materials | Discovered new exit (range 14) 1937 | -10/Materials | Build established: Trapper-Mutant 1972 | -10/Materials | Repaired Lgt. Armor Plating 2085 | -10/Materials | Entered Subcaves 2089 | -10/Subcaves | Learned 2 Materials zone layouts 2276 | -10/Subcaves | Disturbed a concealed Subdweller 2382 | -10/Subcaves | Shifting Twisted Machinery released Sub. Laser 2382 | -10/Subcaves | Shifting Twisted Machinery released Sub. Beam Cannon 3260 | -10/Subcaves | Disturbed a concealed Subdweller 3456 | -10/Subcaves | A swath of the cavern ceiling suddenly collapsed 3575 | -10/Subcaves | Build established: Mutant 3959 | -10/Subcaves | Shifting Twisted Machinery released Riot Gun 3964 | -10/Subcaves | Shifting Twisted Machinery released Scrap Shield 4016 | -10/Subcaves | Shifting Twisted Machinery released Sub. Beam Cannon 4024 | -10/Subcaves | Shifting Twisted Machinery released Shrapnel Trap 4097 | -10/Subcaves | Discovered new exit (range 7) 4310 | -10/Subcaves | Discovered new exit (range 15) 4440 | -10/Subcaves | Visited 4L-MR0's lab 4452 | -10/Subcaves | Found Power Bank 5789 | -10/Subcaves | Discovered new exit (range 15) 5820 | -10/Subcaves | A swath of the cavern ceiling suddenly collapsed 5864 | -10/Subcaves | Visited Clippyterm 5869 | -10/Subcaves | Learned location of Section 7 (-2) 5937 | -10/Subcaves | Core integrity fell below 50% 6212 | -10/Subcaves | Entered Recycling 6689 | -8/Recycling | Discovered new exit (range 15) 7011 | -8/Recycling | Scanned before Scraplab entrance 7114 | -8/Recycling | Entered Scraplab 7147 | -8/Recycling | Discovered new exit (range 2) 7150 | -8/Recycling | Entered Scraptown 7567 | -8/Scraptown | Heard Great Nut preacher, LISTEN AND RECITE! 7677 | -8/Scraptown | Scanned Subdweller tech in exchange for log data 7681 | -8/Scraptown | Learned location of Zion (-7) 7703 | -8/Scraptown | Discovered new exit (range 5) 7844 | -8/Scraptown | Visited Assassins FH 7874 | -8/Scraptown | Visited Spacefarers 7951 | -8/Scraptown | Visited Cave Peace 8070 | -8/Scraptown | Visited TADAMA 8367 | -8/Scraptown | Visited Artisan Demo Area 8441 | -8/Scraptown | Visited Symbiants 8476 | -8/Scraptown | Visited Cyclists 8527 | -8/Scraptown | Visited UFD Registry 8527 | -8/Scraptown | Registered with UFD as "Matrixform" 8576 | -8/Scraptown | Entered Cyclist Reading Room 8640 | -8/Scraptown | Visited Scrapoid Pod Storage 8702 | -8/Scraptown | Visited Cartography Club 8730 | -8/Scraptown | Visited Infowarlord's Domain 8742 | -8/Scraptown | Found Exp. Terrain Scanner 9011 | -8/Scraptown | Visited Botcube Research 9032 | -8/Scraptown | Found Botcube 9082 | -8/Scraptown | Visited Modified Component R&D 9189 | -8/Scraptown | Visited DA-N13 Charitable Foundation 9226 | -8/Scraptown | Found DCF Scrap (30 items) 9299 | -8/Scraptown | Visited Derelict Rescue Squad 9344 | -8/Scraptown | Found DRS Beacon 9519 | -8/Scraptown | Visited Curators Association 9738 | -8/Scraptown | Delivered Scrap Shield to a Scientist 10155 | -8/Scraptown | Visited Scrap Suit Storage 10234 | -8/Scraptown | Visited LU-1G1's Boring Crew 10761 | -8/Scraptown | Found Deep Structural Scanner 10768 | -8/Scraptown | Learned location of Upper Caves (-4) 10768 | -8/Scraptown | Learned location of Proximity Caves (-5) 10768 | -8/Scraptown | Learned location of Quarantine (-2) 10768 | -8/Scraptown | Learned 16 Materials zone layouts 10768 | -8/Scraptown | Learned 8 Access zone layouts 10768 | -8/Scraptown | Learned 4 Mines zone layouts 10768 | -8/Scraptown | Learned 16 Lower Caves zone layouts 10768 | -8/Scraptown | Learned 4 Storage zone layouts 10768 | -8/Scraptown | Learned 4 Recycling zone layouts 10768 | -8/Scraptown | Learned 24 Upper Caves zone layouts 10768 | -8/Scraptown | Learned 8 Proximity Caves zone layouts 10768 | -8/Scraptown | Learned 12 Proximity Caves zone layouts 10768 | -8/Scraptown | Learned 24 Proximity Caves zone layouts 10768 | -8/Scraptown | Learned location of 1 exit from Lower Caves 10768 | -8/Scraptown | Learned location of 2 exits from Proximity Caves 11072 | -8/Scraptown | Discovered new exit (range 3) 12010 | -8/Scraptown | Found Scrap Suit 17450 | -8/Scraptown | Found Scrap Suit 18307 | -8/Scraptown | Found Scrap Suit 18534 | -8/Scraptown | Entered Factory 18534 | -6/Factory | Evolved 8 slots: Propulsion x2, Utility x5, Weapon x1 18535 | -6/Factory | Identified exit to Lower Caves 18832 | -6/Factory | Build established: Derelict-Scrapper 19172 | -6/Factory | Discovered new exit (range 13) 19257 | -6/Factory | Discovered new exit (range 11) 19259 | -6/Factory | Lost 9 parts (1p2n2u4w) 19287 | -6/Factory | Attached Power Bank, gained temporary slots: Power x3 19532 | -6/Factory | Build established: Tank 20123 | -6/Factory | P-60 Hacker assimilated allied Technician 5a 20638 | -6/Factory | Build established: Generator-Tank 21107 | -6/Factory | Spotted B-75 Beast 21133 | -6/Factory | Destroyed B-75 Beast 21333 | -6/Factory | Discovered new exit (range 6) 21458 | -6/Factory | Fabricated M-28 Smith (x1) 21567 | -6/Factory | Entered Lower Caves 21568 | -6/Lower Caves | Identified exit to Lower Caves 21569 | -6/Lower Caves | UFD Scientist delivered a prototype 21569 | -6/Lower Caves | Attracted the attention of an 0b10 checkpoint 21583 | -6/Lower Caves | Found Prototype Protection 21583 | -6/Lower Caves | Identified Enh. Scrap Shield 22463 | -6/Lower Caves | Spotted B-75 Beast 22502 | -6/Lower Caves | Destroyed B-75 Beast 22535 | -6/Lower Caves | Learned Factory terminal intel 23364 | -6/Lower Caves | Botcube activated 23372 | -6/Lower Caves | Botcube completed mutation into treaded form, armed with 1 gun. 23927 | -6/Lower Caves | Entered another Lower Caves area 23927 | -6/Lower Caves | Accompanied by 1 ally 24271 | -6/Lower Caves | Spotted B-75 Beast 24279 | -6/Lower Caves | Destroyed B-75 Beast 24702 | -6/Lower Caves | Build established: Generator-Skirmisher 24909 | -6/Lower Caves | Discovered new exit (range 10) 24924 | -6/Lower Caves | Attracted the attention of an 0b10 checkpoint 24974 | -6/Lower Caves | Entered Data Miner 24974 | -6/Data Miner | Accompanied by 1 ally 24974 | -6/Data Miner | Discovered new exit (range 6) 25005 | -6/Data Miner | Build established: Generator-Gunner 25019 | -6/Data Miner | Met Data Miner 25067 | -6/Data Miner | Acquired the access code to Warlord's prototype stash 25104 | -6/Data Miner | Received God Mode back door access code from Data Miner 25159 | -6/Data Miner | Entered Proximity Caves 25159 | -5/Proximity Caves | Accompanied by 1 ally 25160 | -5/Proximity Caves | Identified exit to Factory 25272 | -5/Proximity Caves | Learned Factory terminal intel 25801 | -5/Proximity Caves | Build established: Gunner 25992 | -5/Proximity Caves | Entered Factory 25992 | -5/Factory | Evolved 2 slots: Utility x1, Weapon x1 25993 | -5/Factory | Loaded intel: 26 terminal locations 26019 | -5/Factory | Identified exit to Upper Caves 26422 | -5/Factory | Lost 3 parts (2n1u) 26669 | -5/Factory | Build established: Hacker-Tank 26711 | -5/Factory | Repaired Broken Cld. Plasma Cannon? 26902 | -5/Factory | Repaired Broken Cld. Plasma Cannon 26953 | -5/Factory | Repaired Hvy. Plasma Cannon 27190 | -5/Factory | Fabricated Adv. Plasma Cannon (x2) 27295 | -5/Factory | Scrapoid reinforcements arrived 27502 | -5/Factory | Found Scrap Suit 27540 | -5/Factory | First assault squad dispatched 27542 | -5/Factory | System corruption reached 10% 27561 | -5/Factory | Cargo convoy interrupted 27614 | -5/Factory | Sucked down chute 27614 | -5/Factory | Entered Waste 27615 | -5/Waste | Met a frightened Derelict 27626 | -5/Waste | Build established: Hacker-Scrapper 27745 | -5/Waste | Spotted C-40 Crusher 27750 | -5/Waste | Destroyed C-40 Crusher 27762 | -5/Waste | Spotted C-40 Crusher 27766 | -5/Waste | Destroyed C-40 Crusher 27771 | -5/Waste | Spotted C-40 Crusher 27782 | -5/Waste | Destroyed C-40 Crusher 27785 | -5/Waste | Spotted C-40 Crusher 27797 | -5/Waste | Crushed by Compactor (1 part destroyed) 27798 | -5/Waste | Destroyed C-40 Crusher 27801 | -5/Waste | Spotted C-40 Crusher 27822 | -5/Waste | Spotted C-40 Crusher 27873 | -5/Waste | Destroyed C-40 Crusher 27914 | -5/Waste | Destroyed C-40 Crusher 28025 | -5/Waste | Warlord forces began an assault 28088 | -5/Waste | Discovered new exit (range 11) 28137 | -5/Waste | Entered Factory 28137 | -5/Factory | Accompanied by 18 allies 28138 | -5/Factory | Loaded intel: 25 terminal locations 28362 | -5/Factory | Garrison activated, responded to threat 28437 | -5/Factory | First assault squad dispatched 28618 | -5/Factory | Lost 4 allies 28701 | -5/Factory | Spotted B-75 Beast 28701 | -5/Factory | Allies destroyed B-75 Beast 28802 | -5/Factory | Fabricated Adv. Plasma Cannon (x2) 28855 | -5/Factory | Discovered new exit (range 4) 28857 | -5/Factory | Lost 3 allies 28882 | -5/Factory | Build established: Pyromaniac-Scrapper 28898 | -5/Factory | Lost 5 allies 29329 | -5/Factory | Lost 9 parts (1p2n3u3w) 29370 | -5/Factory | Discovered exit to Upper Caves (range 15) 29378 | -5/Factory | Entered Upper Caves 29379 | -5/Upper Caves | Identified exit to Upper Caves 29401 | -5/Upper Caves | Encountered a Warlord checkpoint 29416 | -5/Upper Caves | Learned 4 Factory zone layouts 29453 | -5/Upper Caves | Entered another Upper Caves area 29454 | -5/Upper Caves | Encountered a Warlord checkpoint 29524 | -5/Upper Caves | Learned Factory emergency access door positions 29528 | -5/Upper Caves | Build established: Hacker-Mutant 29528 | -5/Upper Caves | Attracted the attention of an 0b10 checkpoint 29609 | -5/Upper Caves | Core integrity fell below 50% 29667 | -5/Upper Caves | Discovered new exit (range 4) 29669 | -5/Upper Caves | Entered Warlord 29670 | -5/Warlord | Identified exit to Proximity Caves 29693 | -5/Warlord | System corruption cleaned by Quarantine Array 29963 | -5/Warlord | Rebuked by Warlord 29984 | -5/Warlord | Opened Warlord's prototype stash 29988 | -5/Warlord | Warlord's base attacked by MAIN.C 30002 | -5/Warlord | Found Spectral Analyzer 30004 | -5/Warlord | Found Prototype Hackware 30004 | -5/Warlord | Identified System Mapper 30011 | -5/Warlord | Found Prototype Device 30011 | -5/Warlord | Identified System Purifier 30083 | -5/Warlord | Found Prototype Energy Cannon 30083 | -5/Warlord | Identified Vortex Driver 30085 | -5/Warlord | Found Prototype Energy Cannon 30085 | -5/Warlord | Identified Vortex Cannon 30153 | -5/Warlord | Opened side exit 30179 | -5/Warlord | Entered Proximity Caves 30180 | -4/Proximity Caves | Identified exit to Factory 30181 | -4/Proximity Caves | Spotter reported a threat 30213 | -4/Proximity Caves | Spotted B-86 Titan 30234 | -4/Proximity Caves | Spotter reported a threat 30255 | -4/Proximity Caves | Entered Factory 30255 | -4/Factory | Evolved 2 slots: Propulsion x2 30256 | -4/Factory | Identified exit to Research 30280 | -4/Factory | Found Prototype Processor 30280 | -4/Factory | Identified Exp. Melee Analysis Suite 30324 | -4/Factory | Build established: Hacker-Sprinter 30343 | -4/Factory | Discovered exit to Research (range 16) 30380 | -4/Factory | Fabricated M-28 Smith (x1) 30419 | -4/Factory | Lost 3 parts (1n1u1w) 30505 | -4/Factory | Search patrols dispatched 30509 | -4/Factory | Discovered new exit (range 16) 30540 | -4/Factory | Fabricated Lgt. Particle Reactor? 30757 | -4/Factory | Scrapoid reinforcements arrived 30881 | -4/Factory | Lost 5 parts (1p2n1u1w) 30925 | -4/Factory | Sucked down chute 30925 | -4/Factory | Entered Waste 30926 | -4/Waste | Met a frightened Derelict 30934 | -4/Waste | Spotted C-40 Crusher 30937 | -4/Waste | Lost 4 parts (2n2w) 30938 | -4/Waste | Spotted C-40 Crusher 30938 | -4/Waste | Spotted C-40 Crusher 30946 | -4/Waste | Spotted C-40 Crusher 30946 | -4/Waste | Discovered new exit (range 21) 30946 | -4/Waste | Spotted C-40 Crusher 30958 | -4/Waste | Spotted C-40 Crusher 30962 | -4/Waste | Warlord forces began an assault 30965 | -4/Waste | Allies destroyed C-40 Crusher 30967 | -4/Waste | Allies destroyed C-40 Crusher 30996 | -4/Waste | Allies destroyed C-40 Crusher 31127 | -4/Waste | Entered Factory 31127 | -4/Factory | Accompanied by 15 allies 31185 | -4/Factory | Murdered 4 allies 31269 | -4/Factory | Spotted B-86 Titan 31278 | -4/Factory | Discovered new exit (range 7) 31416 | -4/Factory | Lost 3 allies 31587 | -4/Factory | Repaired Broken Cld. Impulse Thruster 31624 | -4/Factory | Spotted B-86 Titan 31661 | -4/Factory | Core integrity fell below 50% 31675 | -4/Factory | Found Exp. Signal Interpreter 31694 | -4/Factory | Lost 5 parts (2n2u1w) 31712 | -4/Factory | Identified exit to Garrison 31712 | -4/Factory | Entered Garrison 31767 | -4/Garrison | Rewired B-75 Beast 31803 | -4/Garrison | Spotted B-86 Titan 31810 | -4/Garrison | Triggered checkpoint 31876 | -4/Garrison | Core integrity fell below 20% 31881 | -4/Garrison | Lost 4 parts (2n2w) 31881 | -4/Garrison | Identified exit to Factory 31895 | -4/Garrison | Destroyed by G-67 Veteran with Plasma Rifle Last Messages --------------- 31879_ Stasis field depleted. 31881_ Connecting with Garrison Terminal... >>Force(Override) SYSTEM_OVERRIDE[3] COORDINATES_EXTRACTED 31881_ ALERT: Suspicious activity at Terminal G002. Transmitting hostile system tracking data. 31883_ Cld. Impulse Thruster destroyed. 31888_ Triggered Stasis Trap. 31888_ A bubble of rippling energy engulfs the area. 31888_ Field strength at 94. 31888_ Field strength at 88. 31889_ Field strength at 82. 31890_ Field strength at 76. 31891_ Field strength at 65. 31892_ Field strength at 59. 31893_ Field strength at 33. 31894_ Field strength at 9. 31895_ Field strength at 3. 31895_ Stasis field depleted. Map ----- +----------------------------------------------------+ | # ## ## ###???????????????????????????????? | | # ## ## ############??????????????????????? | | #??????????????????????? | | #??????????????????????? | | #??????????????????????? | | ##+###""""############# #??????????????????????? | | ?#????????????????????# #??????????????????????? | | ??????????????????????# ^#??????????????????????? | | ??????????????????????+Y #??????????????????????? | | ??????????????????????#^ #??????????????????????? | | ??????????????????????# #??????????????????????? | | ??????????????????????# ######### ######??????? | | ??????????????????????ggggg #??????? | | ??????????????????????/ !#?? | | ??????????????????????# ####T#### #######!!#??? | | ??????????????????????# #???##?????????????????? | | ??????????????????????# #??????????????????????? | | ??????????????????????# #??????????????????????? | | ??????????????????????# #??????????????????????? | | ??????????????????????# #??????????????????????? | | ??????????????????????# #??????????????????????? | | ??????????????????????# #??????????????????????? | | ??????????????????????" #??????????????????????? | | ??????????????????????" #??????????????????????? | | ??????????????????????" ^ #??????????????????????? | | ??????????????????????# @#??????????????????????? | | ??????????????????????# #??????????????????????? | | ??????????????????????# #??????????????????????? | | ??????????????????????# #??????????????????????? | | ??????????????????????# #??????????????????????? | | ??????????????????????# #??????????????????????? | | ??????????????????????# #??????????????????????? | | ??????????????????????# #??????????????????????? | | ??????????????????????# #??????????????????????? | | ??????????????????????# ??????????????????????? | | ??????????????????????#